fUSD/lending_fUSD_20250828
["ID","MTS","AMOUNT","RATE_DAILY","PERIOD"]
[381929946,1756415442927,-184.0,0.00029589,7]
[381929948,1756415442936,-150.0,0.00029589,7]
[381929950,1756415442945,-425.94,0.00029731,30]
[381929952,1756415442955,-150.0,0.00029836,7]
[381929954,1756415442963,-150.0,0.00029836,7]
[381929956,1756415442972,-150.0,0.00029836,7]
[381929958,1756415442982,-13281.6833415,0.00029858,2]
[381929960,1756415442995,-150.0,0.00029863,7]
[381929962,1756415443005,-150.0,0.00029863,7]
[381929965,1756415443014,-500.0,0.00029863,7]
[381929967,1756415443023,-150.0,0.00029863,7]
[381929968,1756415443034,-1500.0,0.00029868,5]
[381929971,1756415443042,-1500.0,0.00029868,5]
[381929973,1756415443052,-150.0,0.00029869,7]
[381929977,1756415443061,-424.0,0.000299,2]
[381929980,1756415443070,-150.0,0.00029903,7]
[381929983,1756415443079,-150.0,0.00029937,7]
[381929985,1756415443088,-1425.0,0.00029941,2]
[381929987,1756415443097,-13281.6833415,0.0002996,2]
[381929989,1756415443106,-23758.9183633,0.0002997,2]
[381929991,1756415443115,-26563.3666829,0.0002997,2]
[381929993,1756415443124,-150.0,0.00029971,7]
[381929995,1756415443133,-150.0,0.00029973,5]
[381929997,1756415443142,-23758.9183633,0.0002998,2]
[381929999,1756415443152,-39845.0500244,0.0002998,2]
[381930001,1756415443161,-416.21608657,0.0002998,2]
[381930003,1756415443170,-666.0,0.00029989,10]
[381930005,1756415443179,-19369.44319692,0.0002999,2]
[381930007,1756415443191,-890.79891861,0.0002999,2]
[381930010,1756415443206,-182.431,0.00024154,2]
[381930012,1756415443214,-1708.739765,0.0002999,2]
[381930014,1756415443225,-25548.85484607,0.0002999,2]
[381930016,1756415443234,-53126.7333658,0.0002999,2]
[381930018,1756415443243,-10724.41178813,0.00029992,2]
[381930020,1756415443253,-1350.0,0.00029992,2]
[381930149,1756415445648,-3329.0,0.000249,2]
[381930150,1756415445660,-1123.02997437,0.000249,2]
[381930151,1756415445669,-953.92977563,0.00026894,6]
[381930152,1756415445680,-3498.10019866,0.00026894,6]
[381930153,1756415445689,-4452.02997429,0.00027891,8]
[381930154,1756415445698,-4452.02997429,0.00028888,10]
[381930155,1756415445708,-4452.02997429,0.00029886,12]
[381930156,1756415445717,-220.85623445,0.00029992,2]
[381930157,1756415445726,-252.98745496,0.00029992,2]
[381930158,1756415445736,-2963.78836009,0.00029992,2]
[381930159,1756415445748,-4700.47337818,0.00029992,2]
[381930160,1756415445759,-2308.23471238,0.00029992,2]
[381930161,1756415445768,-54018.36528762,0.0003,4]
[381930162,1756415445782,-1208.0999999,0.0003,4]
[381930163,1756415445793,-608.21731146,0.0003,4]
[381930164,1756415445935,-3512.80595253,0.0003,4]
[381930165,1756415445996,-1162.0,0.0003,4]
[381930333,1756415447873,273.0,0.0003013,120]
[381930334,1756415507365,281.0,0.0003013,120]
[381930335,1756415748308,152.0,0.0003013,120]
[381930336,1756415809167,582.80052189,0.0003013,120]
[381930339,1756416062601,189.19,0.00013699,2]
[381930341,1756416440632,5248.28280397,0.0001305,2]
[381930344,1756416532478,200.0,0.00015025,2]
[381930354,1756416631899,-500.0,0.00016682,2]
[381930355,1756416631909,-251.0,0.00017121,2]
[381930356,1756416631918,-500.0,0.00017419,2]
[381930357,1756416631933,-331.42262779,0.00017419,2]
[381930358,1756416631942,-323.4718489,0.0001742,2]
[381930359,1756416631953,-176.5281511,0.0001742,2]
[381930360,1756416631962,-299.0,0.00017782,2]
[381930361,1756416631971,-200.0,0.00017783,2]
[381930362,1756416631980,-251.0,0.00017867,2]
[381930363,1756416631989,-1000.0,0.00017867,3]
[381930364,1756416631998,-500.0,0.00017867,2]
[381930365,1756416632007,-250.0,0.00017867,2]
[381930366,1756416632016,-163.14308094,0.000179,2]
[381930367,1756416632026,-7135.13514104,0.000179,2]
[381930368,1756416632037,-5383.21525702,0.000179,2]
[381930369,1756416632052,-5119.176193,0.000179,2]
[381930370,1756416632060,-180.14970627,0.00017921,2]
[381930371,1756416632069,-1524.0,0.00017941,2]
[381930372,1756416632078,-500.0,0.00017973,2]
[381930373,1756416632088,-2061.47222532,0.00018,2]
[381930374,1756416632100,-362531.74362037,0.00018,2]
[381930375,1756416632109,-1043335.05252377,0.00018,2]
[381930376,1756416632185,-1119.73751564,0.00018,2]
[381930392,1756416637782,-213.76500783,0.00017899,2]
[381930393,1756416637791,-4559.71081877,0.00018,2]
[381930394,1756416637803,-174318.30808933,0.00018,2]
[381930395,1756416637843,-3646.10796006,0.00018,2]
[381930396,1756416637856,-1935.34111815,0.00018,2]
[381930397,1756416637870,-2515.538259,0.00018,2]
[381930398,1756416637882,-504.82183437,0.00018,2]
[381930399,1756416637899,-20198.39925636,0.00018,2]
[381930400,1756416638064,-1105.10624714,0.00018,2]
[381930401,1756416638123,-4805.64362,0.00018,2]
[381930402,1756416638135,-164551.11070408,0.00018,2]
[381930432,1756416640122,-330.4485828,0.00018,2]
[381930433,1756416640252,-897.2,0.00018,2]
[381930508,1756416642870,-5058.8634116,0.00018,2]
[381930516,1756416644767,250.0,0.00015,2]
[381930518,1756416646006,-300.0,0.00017,2]
[381930519,1756416646017,-37.21936001,0.00018,2]
[381930520,1756416646069,-2330.01184373,0.00018,2]
[381930586,1756417188012,189.65,0.00013699,2]
[381930587,1756417527936,500.0,0.00013699,2]
[381930593,1756417832011,-354.78721094,0.00016363,2]
[381930594,1756417832021,-1200.0,0.00016462,2]
[381930595,1756417832031,-491.85513131,0.00016463,2]
[381930596,1756417832040,-161.11524865,0.00016463,2]
[381930597,1756417832049,-500.0,0.00016463,2]
[381930598,1756417832058,-500.0,0.00016463,2]
[381930599,1756417832068,-500.0,0.00016463,2]
[381930600,1756417832077,-500.0,0.00016463,2]
[381930601,1756417832089,-500.0,0.00016463,2]
[381930602,1756417832098,-636.20782143,0.00016463,2]
[381930603,1756417832107,-500.0,0.00016463,2]
[381930604,1756417832116,-500.0,0.00016463,2]
[381930605,1756417832125,-459.57864682,0.00016463,2]
[381930606,1756417832140,-2223.43906149,0.00016464,2]
[381930607,1756417832155,-1181.1423333,0.00016464,2]
[381930608,1756417832238,-7467.96860521,0.00016464,2]
[381930609,1756417832248,-258.14245726,0.00016519,2]
[381930610,1756417832257,-500.0,0.00016519,2]
[381930611,1756417832266,-198.50265409,0.00016519,2]
[381930612,1756417832276,-1199.61,0.0001652,2]
[381930613,1756417832285,-500.0,0.00016574,2]
[381930614,1756417832294,-408.0,0.00016629,2]
[381930615,1756417832303,-550.0,0.0001663,2]
[381930616,1756417832312,-150.0,0.00016631,2]
[381930617,1756417832321,-2230.42,0.00016631,2]
[381930618,1756417832330,-354.78721094,0.00016757,2]
[381930619,1756417832339,-1000.0,0.00016778,2]
[381930620,1756417832348,-1852.42,0.00016778,2]
[381930621,1756417832357,-244.52,0.00016778,2]
[381930622,1756417832366,-5698.22,0.00016793,2]
[381930623,1756417832375,-1992.65,0.00016841,2]
[381930624,1756417832384,-330.16536758,0.00016867,2]
[381930626,1756417832394,-335.0207793,0.00016867,2]
[381930627,1756417832402,-536.77201311,0.00016867,2]
[381930628,1756417832412,-500.0,0.00016867,2]
[381930630,1756417832421,-500.0,0.0001697,2]
[381930632,1756417832431,-150.0,0.0001697,2]
[381930634,1756417832440,-175.3,0.00016972,2]
[381930636,1756417832449,-250.0,0.00017009,2]
[381930638,1756417832459,-200.0,0.00017088,2]
[381930640,1756417832468,-1507.62,0.0001713,2]
[381930642,1756417832477,-354.78721094,0.0001715,2]
[381930644,1756417832486,-166.85,0.00017179,2]
[381930646,1756417832495,-207.4,0.00017224,2]
[381930648,1756417832504,-500.0,0.00017224,2]
[381930650,1756417832513,-151.0,0.00017224,2]
[381930652,1756417832522,-698.99806407,0.00017234,2]
[381930656,1756417832551,-225.75891575,0.00016519,2]
[381930658,1756417832560,-2158.61193593,0.00017234,2]
[381930660,1756417832569,-22918.2082495,0.00017234,2]
[381930668,1756417838001,-478.21,0.00017234,2]
[381930669,1756417838012,-298.34808751,0.00017234,2]
[381930670,1756417838167,-4055.46366299,0.00017234,2]
[381930671,1756417838177,-500.0,0.0001725,2]
[381930672,1756417838186,-305.08173042,0.00017279,2]
[381930673,1756417838225,-194.91826958,0.00017279,2]
[381930674,1756417838235,-500.0,0.00017334,2]
[381930675,1756417838246,-1199.61,0.00017346,2]
[381930676,1756417838255,-500.0,0.00017389,2]
[381930677,1756417838265,-133.57624668,0.00017415,2]
[381930678,1756417838278,-366.42375332,0.00017415,2]
[381930679,1756417838288,-500.0,0.00017444,2]
[381930680,1756417838298,-500.0,0.00017499,2]
[381930681,1756417838309,-500.0,0.00017554,2]
[381930682,1756417838319,-915.78740668,0.00017608,2]
[381930683,1756417838332,-1688.05259332,0.00017608,2]
[381930684,1756417838342,-500.0,0.00017609,2]
[381930685,1756417838351,-500.0,0.00017664,2]
[381930686,1756417838362,-2051.86934704,0.00017693,2]
[381930851,1756417840144,-197.59475972,0.00016362,2]
[381930853,1756417840157,-1268.83697091,0.00017693,2]
[381930876,1756417840366,-698.71387273,0.00017693,2]
[381930883,1756417840425,-9310.88980932,0.00017693,2]
[381930885,1756417840435,-300.0,0.000177,6]
[381930887,1756417840444,-158.83931392,0.000177,2]
[381930889,1756417840453,-500.0,0.00017719,2]
[381930891,1756417840463,-467.12,0.00017767,3]
[381930893,1756417840473,-392.18897485,0.00017774,2]
[381930896,1756417840484,-165.48966117,0.00017774,2]
[381930898,1756417840494,-161.97645646,0.000178,2]
[381930899,1756417840503,-600.0,0.000178,6]
[381930901,1756417840512,-51.6164785,0.00017813,2]
[381930904,1756417840524,-1222.23523993,0.00017813,2]
[381931131,1756417843041,-6956.29828157,0.00017813,2]
[381931133,1756417843051,-1000.0,0.00017819,2]
[381931135,1756417843060,-192.45,0.00017877,2]
[381931137,1756417843069,-1000.0,0.000179,2]
[381931139,1756417843079,-9523.927,0.000179,2]
[381931141,1756417843088,-47984.97382116,0.000179,2]
[381931143,1756417843099,-25186.3396482,0.000179,2]
[381931146,1756417843110,-18964.88172308,0.000179,2]
[381931148,1756417843125,-493.100647,0.000179,2]
[381931151,1756417843135,-2490.84457509,0.000179,2]
[381931153,1756417843147,-8614.90068111,0.000179,2]
[381931155,1756417843160,-337.65771441,0.000179,2]
[381931157,1756417843171,-479.75,0.000179,2]
[381931170,1756417843273,-1566.33914425,0.000179,2]
[381931172,1756417843285,-5205.9392457,0.000179,2]
[381931174,1756417843294,-1000.0,0.000179,6]
[381931176,1756417843304,-15873.77393199,0.000179,2]
[381931178,1756417843313,-7420.41186254,0.00017919,2]
[381931463,1756417846044,-1934.3048977,0.00017919,2]
[381931465,1756417846056,-2950.45,0.00017919,2]
[381931477,1756417846164,-2695.81323976,0.00017919,2]
[381931479,1756417846173,-172.1321947,0.00017938,2]
[381931481,1756417846182,-235.4229631,0.00017973,2]
[381931483,1756417846191,-500.0,0.00017973,2]
[381931485,1756417846202,-500.0,0.00017973,2]
[381931487,1756417846211,-500.0,0.00017973,2]
[381931489,1756417846220,-500.0,0.00017973,2]
[381931491,1756417846230,-151.18306465,0.00017973,2]
[381931493,1756417846239,-500.0,0.00017973,2]
[381931495,1756417846248,-500.0,0.00017973,2]
[381931497,1756417846257,-500.0,0.00017973,2]
[381931498,1756417846266,-500.0,0.00017973,2]
[381931501,1756417846275,-500.0,0.00017973,2]
[381931502,1756417846284,-500.56799362,0.00017973,2]
[381931504,1756417846293,-150.0,0.00017999,2]
[381931506,1756417846302,-11407.04668785,0.00018,2]
[381931509,1756417846317,-4776.19532418,0.00018,2]
[381931512,1756417846334,-7055.94171241,0.00018,2]
[381931519,1756417846392,-5602.0114,0.00018,2]
[381931787,1756418118059,167.13,0.0002622,120]
[381931788,1756418160982,202.12,0.00013699,2]
[381931791,1756418404628,218.21329167,0.000301,120]
[381931792,1756418448181,250.0,0.00015,2]
[381931793,1756418893026,-1449.41,0.00016006,2]
[381931794,1756418893051,-1200.0,0.00016199,2]
[381931795,1756418893076,-150.0,0.000162,2]
[381931796,1756418893102,-150.0,0.000162,2]
[381931797,1756418893127,-150.0,0.000162,2]
[381931798,1756418893151,-150.0,0.000162,2]
[381931799,1756418893178,-150.0,0.000162,2]
[381931800,1756418893204,-150.0,0.000162,2]
[381931801,1756418893228,-209.96571813,0.000162,2]
[381931802,1756418893253,-150.0,0.000162,2]
[381931803,1756418893277,-150.0,0.000162,2]
[381931804,1756418893303,-150.0,0.000162,2]
[381931805,1756418893328,-150.0,0.000162,2]
[381931806,1756418893352,-150.0,0.00016218,2]
[381931807,1756418893375,-150.0,0.00016237,2]
[381931808,1756418893403,-150.0,0.00016255,2]
[381931809,1756418893431,-150.0,0.00016273,2]
[381931810,1756418893456,-150.0,0.00016292,2]
[381931811,1756418893481,-150.0,0.000163,2]
[381931812,1756418893510,-150.0,0.0001631,2]
[381931813,1756418893535,-150.0,0.00016329,2]
[381931814,1756418893559,-150.0,0.00016347,2]
[381931815,1756418893585,-150.0,0.00016365,2]
[381931816,1756418893610,-150.0,0.00016384,2]
[381931817,1756418893635,-150.0,0.000164,2]
[381931818,1756418893659,-150.0,0.00016402,2]
[381931819,1756418893684,-150.0,0.0001642,2]
[381931820,1756418893708,-150.0,0.00016439,2]
[381931821,1756418893732,-150.0,0.00016457,2]
[381931822,1756418893757,-510.64294091,0.00016475,2]
[381931823,1756418893780,-150.0,0.00016476,2]
[381931824,1756418893804,-150.0,0.00016494,2]
[381931825,1756418893828,-150.0,0.000165,2]
[381931826,1756418893851,-150.0,0.00016512,2]
[381931827,1756418893874,-150.0,0.00016531,2]
[381931828,1756418893899,-150.0,0.00016549,2]
[381931829,1756418893924,-150.0,0.00016567,2]
[381931830,1756418893962,-150.0,0.00016586,2]
[381931831,1756418894207,-150.0,0.000166,2]
[381931832,1756418894236,-150.0,0.00016604,2]
[381931833,1756418894263,-150.0,0.00016622,2]
[381931834,1756418894296,-150.0,0.00016641,2]
[381931835,1756418894321,-150.0,0.00016659,2]
[381931836,1756418894348,-150.0,0.00016678,2]
[381931837,1756418894373,-150.0,0.00016696,2]
[381931838,1756418894399,-150.0,0.000167,2]
[381931839,1756418894424,-150.0,0.00016714,2]
[381931840,1756418894449,-150.0,0.00016733,2]
[381931841,1756418894474,-150.0,0.00016751,2]
[381931842,1756418894503,-150.0,0.00016769,2]
[381931843,1756418894529,-150.0,0.00016788,2]
[381931844,1756418894554,-150.0,0.000168,2]
[381931845,1756418894587,-150.0,0.00016806,2]
[381931846,1756418894612,-150.0,0.00016824,2]
[381931847,1756418894636,-150.0,0.00016843,2]
[381931848,1756418894660,-150.0,0.00016861,2]
[381931849,1756418894685,-150.0,0.0001688,2]
[381931850,1756418894710,-150.0,0.00016898,2]
[381931851,1756418894734,-150.0,0.000169,2]
[381931852,1756418894758,-150.0,0.00016916,2]
[381931853,1756418894788,-150.0,0.00016935,2]
[381931854,1756418894814,-79.98134096,0.00016953,2]
[381931861,1756419032233,-1000.0,0.00016515,2]
[381931862,1756419032243,-7864.7948249,0.0001657,2]
[381931863,1756419032253,-70.01865904,0.00016953,2]
[381931864,1756419032262,-150.0,0.00016971,2]
[381931865,1756419032271,-150.0,0.0001699,2]
[381931866,1756419032281,-150.0,0.00017,2]
[381931867,1756419032291,-150.0,0.00017008,2]
[381931868,1756419032300,-150.0,0.00017027,2]
[381931869,1756419032310,-150.0,0.00017045,2]
[381931870,1756419032320,-150.0,0.00017063,2]
[381931871,1756419032333,-38.4656214,0.00017082,2]
[381931872,1756419032345,-111.5343786,0.00017082,2]
[381931873,1756419032355,-1037.29417535,0.00017098,2]
[381931874,1756419032367,-162.70582465,0.00017098,2]
[381931875,1756419032376,-231.7320618,0.00017099,2]
[381931876,1756419032386,-500.0,0.00017099,2]
[381931877,1756419032395,-187.21214692,0.00017099,2]
[381931878,1756419032404,-204.73956341,0.00017099,2]
[381931879,1756419032414,-9999.99,0.00017099,2]
[381931880,1756419032424,-999.99,0.00017099,2]
[381931881,1756419032433,-9999.99,0.00017099,2]
[381931882,1756419032443,-1569.8,0.00017099,2]
[381931883,1756419032452,-150.99,0.00017099,2]
[381931884,1756419032462,-2482.2,0.00017099,2]
[381931885,1756419032472,-150.0,0.000171,2]
[381931886,1756419032481,-150.0,0.000171,2]
[381931887,1756419032491,-150.0,0.000171,2]
[381931888,1756419032501,-150.0,0.000171,2]
[381931889,1756419032510,-150.0,0.000171,2]
[381931890,1756419032520,-87827.91,0.000171,2]
[381931891,1756419032531,-1171.39,0.000171,2]
[381931892,1756419032542,-150.0,0.00017118,2]
[381931893,1756419032553,-150.0,0.00017137,2]
[381931894,1756419032562,-150.0,0.00017155,2]
[381931895,1756419032573,-150.0,0.00017173,2]
[381931896,1756419032582,-150.0,0.00017192,2]
[381931897,1756419032592,-150.0,0.000172,2]
[381931898,1756419032601,-886.49,0.00017204,2]
[381931899,1756419032612,-150.0,0.0001721,2]
[381931900,1756419032622,-150.0,0.00017229,2]
[381931901,1756419032631,-150.0,0.00017247,2]
[381931902,1756419032640,-1000.0,0.00017251,2]
[381931903,1756419032650,-150.0,0.00017265,2]
[381931904,1756419032659,-150.0,0.00017284,2]
[381931905,1756419032669,-150.0,0.000173,2]
[381931906,1756419032678,-150.0,0.00017302,2]
[381931907,1756419032688,-222.22211551,0.00017304,2]
[381931909,1756419032697,-150.0,0.0001732,2]
[381931911,1756419032707,-150.0,0.00017339,2]
[381931913,1756419032716,-150.0,0.00017357,2]
[381931916,1756419032726,-150.0,0.00017376,2]
[381931919,1756419032736,-157.52,0.0001739,2]
[381931922,1756419032746,-150.0,0.00017394,2]
[381931925,1756419032756,-150.0,0.000174,2]
[381931926,1756419032765,-2162.37,0.00017404,2]
[381931927,1756419032775,-150.0,0.00017412,2]
[381931928,1756419032785,-150.0,0.00017431,2]
[381931930,1756419032794,-150.0,0.00017449,2]
[381931931,1756419032803,-150.0,0.00017467,2]
[381931933,1756419032813,-500.0,0.00017475,2]
[381931935,1756419032823,-167.13,0.0001748,2]
[381931937,1756419032832,-150.0,0.00017486,2]
[381931938,1756419032843,-150.0,0.000175,2]
[381931939,1756419032852,-150.0,0.00017504,2]
[381931940,1756419032863,-150.0,0.00017522,2]
[381931941,1756419032872,-150.0,0.00017541,2]
[381931942,1756419032881,-150.0,0.00017559,2]
[381931943,1756419032892,-150.0,0.00017578,2]
[381931944,1756419032903,-150.0,0.00017596,2]
[381931945,1756419032912,-150.0,0.000176,2]
[381931946,1756419032923,-251.0,0.00017606,2]
[381931947,1756419032933,-150.0,0.00017614,2]
[381931948,1756419032942,-150.0,0.00017633,2]
[381931949,1756419032952,-150.0,0.00017651,2]
[381931950,1756419032962,-150.0,0.00017669,2]
[381931951,1756419032972,-150.0,0.00017688,2]
[381931952,1756419032983,-150.0,0.000177,2]
[381931953,1756419032994,-200.0,0.000177,6]
[381931954,1756419033003,-160.67780303,0.000177,2]
[381931955,1756419033013,-150.0,0.00017706,2]
[381931956,1756419033023,-150.0,0.00017724,2]
[381931957,1756419033033,-880.68629776,0.00017732,2]
[381931958,1756419033044,-150.0,0.00017743,2]
[381931959,1756419033054,-150.0,0.00017761,2]
[381931960,1756419033064,-150.0,0.0001778,2]
[381931961,1756419033075,-150.0,0.00017798,2]
[381931962,1756419033085,-708.858,0.00017799,2]
[381931963,1756419033095,-1000.0,0.000178,2]
[381931964,1756419033105,-331.6358,0.000178,2]
[381931965,1756419033115,-1000.0,0.000178,2]
[381931966,1756419033125,-17798.05950837,0.000178,2]
[381931967,1756419033135,-150.0,0.000178,2]
[381931968,1756419033145,-2500.0,0.000178,2]
[381931969,1756419033155,-4919.2043503,0.000178,2]
[381931970,1756419033167,-943.17711426,0.000178,2]
[381931971,1756419033179,-10457.20822479,0.000178,2]
[381931972,1756419033189,-500.0,0.000178,6]
[381931973,1756419033199,-194.51156814,0.00017808,2]
[381931974,1756419033209,-150.0,0.00017816,2]
[381931975,1756419033219,-150.0,0.00017835,2]
[381931976,1756419033229,-150.0,0.00017853,2]
[381931977,1756419033242,-166.92,0.0001787,2]
[381931978,1756419033252,-150.0,0.00017871,2]
[381931979,1756419033262,-150.0,0.0001789,2]
[381931980,1756419033271,-703.43732321,0.000179,2]
[381931981,1756419033282,-656.7284898,0.000179,2]
[381931982,1756419033294,-500.0,0.000179,2]
[381931983,1756419033305,-43012.8302044,0.000179,2]
[381931984,1756419033316,-10454.86647489,0.000179,2]
[381931985,1756419033331,-1032.65940234,0.000179,2]
[381931986,1756419033346,-4284.15540081,0.000179,2]
[381931987,1756419033360,-756.43989339,0.000179,2]
[381931988,1756419033372,-1421.775,0.000179,2]
[381931993,1756419038281,-2260.93641,0.000179,2]
[381931994,1756419038293,-1190.78,0.000179,2]
[381931995,1756419038335,-1552.17388718,0.000179,2]
[381931996,1756419038346,-1240.07,0.000179,2]
[381932032,1756419039003,-19217.85177054,0.000179,2]
[381932033,1756419039153,-49524.2370003,0.000179,2]
[381932034,1756419039165,-2005.6021978,0.000179,2]
[381932035,1756419040216,-563.347465,0.000179,2]
[381932036,1756419040331,-396.31350005,0.000179,2]
[381932037,1756419040390,-49813.56668029,0.000179,2]
[381932038,1756419040399,-172.1321947,0.000179,2]
[381932039,1756419040409,-150.0,0.000179,2]
[381932040,1756419040419,-270.28947152,0.000179,2]
[381932041,1756419040428,-700.0,0.000179,6]
[381932042,1756419040439,-24192.1108284,0.00017902,2]
[381932043,1756419040448,-42148.7012607,0.00017902,2]
[381932044,1756419040459,-150.0,0.00017908,2]
[381932045,1756419040468,-150.0,0.00017927,2]
[381932046,1756419040478,-150.0,0.00017945,2]
[381932047,1756419040487,-2751.0,0.00017954,2]
[381932048,1756419040497,-150.0,0.00017963,2]
[381932049,1756419040507,-500.0,0.00017973,2]
[381932050,1756419040518,-500.93939924,0.00017973,2]
[381932051,1756419040531,-150.0,0.00017982,2]
[381932052,1756419040544,-151.0,0.00017989,2]
[381932053,1756419040555,-150.0,0.00017999,2]
[381932054,1756419040566,-155.78771722,0.00018,2]
[381932055,1756419040576,-150.0,0.00018,2]
[381932056,1756419040587,-150.0,0.00018,2]
[381932057,1756419040599,-150.0,0.00018,2]
[381932058,1756419040611,-150.0,0.00018,2]
[381932059,1756419040620,-150.0,0.00018,2]
[381932060,1756419040629,-150.0,0.00018,2]
[381932061,1756419040639,-150.0,0.00018,2]
[381932062,1756419040648,-463809.46257963,0.00018,2]
[381932063,1756419040659,-1624.59261536,0.00018,2]
[381932066,1756419043313,-59557.52,0.00018,2]
[381932067,1756419043425,-631.70000005,0.00018,2]
[381932072,1756419046304,-175.650417,0.0001781,2]
[381932073,1756419046314,-909.34958484,0.00018,2]
[381932417,1756419060073,201.67,0.00013699,2]
[381932418,1756419203834,200.0,0.00013588,2]
[381932419,1756419204200,200.0,0.00013589,2]
[381932421,1756420012059,292.7,8.512e-05,2]
[381932422,1756420012263,292.7,8.942e-05,2]
[381932423,1756420012495,292.7,9.373e-05,2]
[381932424,1756420012705,292.7,9.803e-05,2]
[381932425,1756420012921,292.7,0.00010233,2]
[381932426,1756420013125,292.7,0.00010664,2]
[381932427,1756420013347,292.7,0.00011094,2]
[381932428,1756420013571,292.7,0.00011525,2]
[381932429,1756420013793,292.7,0.00011955,2]
[381932430,1756420014112,292.7,0.00012385,2]
[381932431,1756420014333,292.7,0.00012816,2]
[381932432,1756420014542,292.7,0.00013246,2]
[381932433,1756420014749,149.38719603,0.00013677,2]
[381932434,1756420014775,143.31280397,0.00013677,2]
[381932435,1756420015039,292.7,0.00014107,2]
[381932436,1756420015268,292.7,0.00014538,2]
[381932437,1756420015510,292.7,0.00014968,2]
[381932439,1756420037458,201.25,0.00013699,2]
[381932440,1756420042654,-292.7,0.00015398,2]
[381932441,1756420042679,-652.7646096,0.000154,2]
[381932442,1756420042706,-292.7,0.00015829,2]
[381932443,1756420042732,-292.7,0.00016259,2]
[381932444,1756420042756,-500.0,0.0001656,2]
[381932445,1756420042782,-300.0,0.00016561,2]
[381932446,1756420042807,-1200.0,0.00016561,2]
[381932447,1756420042835,-500.0,0.00016561,2]
[381932448,1756420042862,-500.0,0.00016561,2]
[381932449,1756420042889,-500.0,0.00016561,2]
[381932450,1756420042916,-500.0,0.00016561,2]
[381932451,1756420042943,-500.0,0.00016561,2]
[381932452,1756420043148,-500.0,0.00016561,2]
[381932453,1756420043176,-611.2539768,0.00016561,2]
[381932454,1756420043203,-500.0,0.00016561,2]
[381932455,1756420043230,-500.0,0.00016561,2]
[381932456,1756420043255,-1000.0,0.00016596,2]
[381932457,1756420043280,-1071.12,0.00016666,2]
[381932458,1756420043307,-292.7,0.0001669,2]
[381932459,1756420043331,-200.0,0.00016776,2]
[381932460,1756420043357,-294.0614136,0.00016899,2]
[381932461,1756420092392,5120.45300222,0.0001439,2]
[381932462,1756420117328,263.53679241,0.000107,2]
[381932463,1756420126106,160.14799472,0.00012,2]
[381932470,1756420231456,-3168.57244422,0.00016482,2]
[381932471,1756420231470,-295.99999997,0.00016482,2]
[381932472,1756420231484,-1028.33216437,0.00016482,2]
[381932473,1756420231523,-341.57070344,0.00016482,2]
[381932474,1756420231534,-1305.72583505,0.00016565,2]
[381932475,1756420231635,-1445.27416495,0.00016565,2]
[381932476,1756420231647,-2826.76,0.00016665,2]
[381932477,1756420231658,-452.1785864,0.00016899,2]
[381932478,1756420231668,-1200.0,0.00016942,2]
[381932479,1756420231679,-300.0,0.00016943,2]
[381932480,1756420231689,-512.36155298,0.00016943,2]
[381932481,1756420231699,-303.0047008,0.00016943,2]